Workbook

Sheet Overall
B3: Klippel QC Gauge Repeatability & Reproducibility Report
B5: Model Name: | E5: SO Klippel QC -- Play3 Passive Radiator
B6: Ambient Temperature: | F6: ℃
B7: Relative Humidity: | F7: %
B9: Measurement date: | E9: 2014.04.10
G11: Analyzed based on data of Trial 1, 2, 3 | M11: Analyzed based on data of Trial 2, 3, 4
G13: fs | J13: Stiffness deviations | M13: fs | P13: Stiffness deviations
B14: Variation caused by Equipment: | G14: ='fs-123'!E31 -> 15.14% | J14: ='K-123'!E31 -> 26.48% | M14: ='fs-234'!E31 -> 5.25% | P14: ='K-234'!E31 -> 11.68%
B15: Variation caused by Appraiser: | G15: ='fs-123'!E32 -> 6.13% | J15: ='K-123'!E32 -> 11.40% | M15: ='fs-234'!E32 -> 1.72% | P15: ='K-234'!E32 -> 3.01%
B16: Overall Gauge RnR Error: | G16: ='fs-123'!E33 -> 16.33% | J16: ='K-123'!E33 -> 28.83% | M16: ='fs-234'!E33 -> 5.53% | P16: ='K-234'!E33 -> 12.06%
B20: Repeatability: | D20: Repeatability is the variation in measurements obtained with one measurement instrument when used several times by an appraiser while measuring the identical characteristic on the same part.
B23: Reproducibility: | D23: Reproducibility is the variation in the average of the measurements made by different appraisers using the same measuring instrument when measuring the identical characteristic on the same part.
B26: Stability: | D26: Stability is the total variation in the measurements obtained with a measurement system on the same master or parts when measuring a single characteristic over an extended time period.
S41: .

Sheet fs-234
B3: Klippel QC Gauge Repeatability & Reproducibility Report
B5: Model Name: | E5: SO Klippel QC -- Play3 PR fs
B6: Ambient Temperature: | F6: ℃
B7: Relative Humidity: | F7: % | N7: SPEC (Hz): | P7: 0
N8: Tolerance (%):
B9: Measurement date: | E9: 2014.04.10 | N9: Tolerance (mm): | P9: 4 | Q9: -4
B11: Operators | C11: A | H11: B | M11: C
B12: Trails | C12: 1 | D12: 2 | E12: 3 | G12: Range | H12: 1 | J12: 2 | K12: 3 | L12: Range | M12: 1 | O12: 2 | P12: 3 | Q12: Range
B13: Sample
B14: 1 | C14: 37.20 | D14: 37.03 | E14: 37.03 | G14: =MAX(C14:F14)-MIN(C14:F14) -> 0.17 | I14: 37.11 | J14: 37.03 | K14: 37.03 | L14: =MAX(H14:K14)-MIN(H14:K14) -> 0.09 | N14: 37.11 | O14: 37.11 | P14: 37.03 | Q14: =MAX(M14:P14)-MIN(M14:P14) -> 0.09
B15: 2 | C15: 37.11 | D15: 37.03 | E15: 36.94 | G15: =MAX(C15:F15)-MIN(C15:F15) -> 0.17 | I15: 37.03 | J15: 36.94 | K15: 36.94 | L15: =MAX(H15:K15)-MIN(H15:K15) -> 0.09 | N15: 37.03 | O15: 36.94 | P15: 37.03 | Q15: =MAX(M15:P15)-MIN(M15:P15) -> 0.09
B16: 3 | C16: 35.93 | D16: 35.68 | E16: 35.52 | G16: =MAX(C16:F16)-MIN(C16:F16) -> 0.41 | I16: 35.77 | J16: 35.36 | K16: 35.60 | L16: =MAX(H16:K16)-MIN(H16:K16) -> 0.41 | N16: 35.68 | O16: 35.44 | P16: 35.60 | Q16: =MAX(M16:P16)-MIN(M16:P16) -> 0.25
B17: 4 | C17: 36.94 | D17: 36.86 | E17: 36.77 | G17: 0.17 | I17: 36.86 | J17: 36.77 | K17: 36.77 | L17: 0.09 | N17: 36.86 | O17: 36.77 | P17: 36.86 | Q17: 0.09
B18: 5 | C18: 36.27 | D18: 36.27 | E18: 36.10 | G18: 0.17 | I18: 36.27 | J18: 36.18 | K18: 36.18 | L18: 0.08 | N18: 36.27 | O18: 36.18 | P18: 36.27 | Q18: 0.08
B19: 6 | C19: 37.63 | D19: 37.46 | E19: 37.37 | G19: 0.26 | I19: 37.46 | J19: 37.37 | K19: 37.37 | L19: 0.09 | N19: 37.46 | O19: 37.37 | P19: 37.37 | Q19: 0.09
B20: 7 | C20: 36.86 | D20: 36.69 | E20: 36.69 | G20: 0.17 | I20: 36.77 | J20: 36.69 | K20: 36.69 | L20: 0.08 | N20: 36.77 | O20: 36.69 | P20: 36.69 | Q20: 0.08
B21: 8 | C21: 37.03 | D21: 36.94 | E21: 36.94 | G21: 0.09 | I21: 36.94 | J21: 36.94 | K21: 36.86 | L21: 0.09 | N21: 36.94 | O21: 36.86 | P21: 36.86 | Q21: 0.09
B22: 9 | C22: 37.03 | D22: 36.94 | E22: 36.86 | G22: 0.17 | I22: 36.94 | J22: 36.86 | K22: 36.86 | L22: 0.09 | N22: 36.94 | O22: 36.86 | P22: 36.86 | Q22: 0.09
B23: 10 | C23: 36.43 | D23: 36.27 | E23: 36.27 | G23: 0.17 | I23: 36.35 | J23: 36.27 | K23: 36.35 | L23: 0.08 | N23: 36.35 | O23: 36.27 | P23: 36.27 | Q23: 0.08
B24: Totals: | C24: =SUM(C14:C23) -> 368.43 | D24: =SUM(D14:D23) -> 367.16 | E24: =SUM(E14:F23) -> 366.48 | G24: =SUM(G14:G23) -> 1.95 | H24: =SUM(H14:I23) -> 367.49 | J24: =SUM(J14:J23) -> 366.40 | K24: =SUM(K14:K23) -> 366.65 | L24: =SUM(L14:L23) -> 1.18 | M24: =SUM(M14:N23) -> 367.41 | O24: =SUM(O14:O23) -> 366.49 | P24: =SUM(P14:P23) -> 366.82 | Q24: =SUM(Q14:Q23) -> 1.01
C26: Sum | D26: =SUM(C24:F24) -> 1102.07 | E26: Ave Ra | G26: =AVERAGE(G14:G23) -> 0.19 | H26: Sum | J26: =SUM(H24:K24) -> 1100.55 | K26: Ave Rb | L26: =AVERAGE(L14:L23) -> 0.12 | M26: Sum | O26: =SUM(M24:P24) -> 1100.72 | P26: Ave Rc | Q26: =AVERAGE(Q14:Q23) -> 0.10
C27: X Average | D27: =D26/(3*MAX(B14:B23)) -> 36.74 | H27: X Average | J27: =J26/(3*MAX(B14:B23)) -> 36.68 | M27: X Average | O27: =O26/(3*(MAX(B14:B23))) -> 36.69
C29: Average R: | D29: =AVERAGE(G26,L26,Q26) -> 0.14 | F29: D4= | G29: 2.58
C30: UCL: | D30: =D29*G29 -> 0.36 | F30: K1= | G30: 3.05 | H30: for 3 trials. | K30: K2= | L30: 2.7 | M30: for 3 appraisers.
C31: Repeatability: | D31: =3.05*D29 -> 0.42 | E31: =D31/($P$9+ABS($Q$9)) -> 5.3% | G31: Variation caused by Equipment
C32: Reproducibility: | D32: =L30*(MAX(D27,J27,O27)-MIN(D27,J27,O27)) -> 0.14 | E32: =D32/($P$9+ABS($Q$9)) -> 1.7% | G32: Variation caused by Operator
C33: Gauge Capability: | D33: =SQRT(D31^2+D32^2) -> 0.44 | E33: 5.5% | G33: Overall Gauge RnR Capability
B36: Repeatability: | D36: Repeatability is the variation in measurements obtained with one measurement instrument when used several times by an appraiser while measuring the identical characteristic on the same part.
B39: Reproducibility: | D39: Reproducibility is the variation in the average of the measurements made by different appraisers using the same measuring instrument when measuring the identical characteristic on the same part.
B42: Stability: | D42: Stability is the total variation in the measurements obtained with a measurement system on the same master or parts when measuring a single characteristic over an extended time period.
R45: .

Sheet K-234
B3: Klippel QC Gauge Repeatability & Reproducibility Report
B5: Model Name: | E5: SO Klippel QC -- Play3 PR Stillness deviations
B6: Ambient Temperature: | F6: ℃
B7: Relative Humidity: | F7: % | N7: SPEC (Hz): | P7: 0
N8: Tolerance (%):
B9: Measurement date: | E9: 2014.04.10 | N9: Tolerance (mm): | P9: 10 | Q9: -10
B11: Operators | C11: A | H11: B | M11: C
B12: Trails | C12: 1 | D12: 2 | E12: 3 | G12: Range | H12: 1 | J12: 2 | K12: 3 | L12: Range | M12: 1 | O12: 2 | P12: 3 | Q12: Range
B13: Sample
B14: 1 | C14: -10.53 | D14: -11.21 | E14: -11.35 | G14: =MAX(C14:F14)-MIN(C14:F14) -> 0.82 | I14: -10.63 | J14: -11.25 | K14: -11.26 | L14: =MAX(H14:K14)-MIN(H14:K14) -> 0.62 | N14: -11.16 | O14: -10.81 | P14: -11.30 | Q14: =MAX(M14:P14)-MIN(M14:P14) -> 0.49
B15: 2 | C15: -10.43 | D15: -10.64 | E15: -11.24 | G15: =MAX(C15:F15)-MIN(C15:F15) -> 0.81 | I15: -10.55 | J15: -11.45 | K15: -11.30 | L15: =MAX(H15:K15)-MIN(H15:K15) -> 0.90 | N15: -10.56 | O15: -11.00 | P15: -10.23 | Q15: =MAX(M15:P15)-MIN(M15:P15) -> 0.77
B16: 3 | C16: -15.95 | D16: -17.46 | E16: -18.35 | G16: =MAX(C16:F16)-MIN(C16:F16) -> 2.40 | I16: -17.28 | J16: -18.64 | K16: -17.93 | L16: =MAX(H16:K16)-MIN(H16:K16) -> 1.37 | N16: -18.50 | O16: -18.84 | P16: -18.54 | Q16: =MAX(M16:P16)-MIN(M16:P16) -> 0.34
B17: 4 | C17: -9.99 | D17: -10.52 | E17: -10.79 | G17: 0.80 | I17: -11.06 | J17: -11.61 | K17: -11.42 | L17: 0.54 | N17: -10.87 | O17: -11.95 | P17: -11.17 | Q17: 1.09
B18: 5 | C18: -14.56 | D18: -14.31 | E18: -15.59 | G18: 1.29 | I18: -14.32 | J18: -14.08 | K18: -13.96 | L18: 0.36 | N18: -14.14 | O18: -14.13 | P18: -14.82 | Q18: 0.69
B19: 6 | C19: -8.64 | D19: -9.09 | E19: -9.61 | G19: 0.97 | I19: -9.64 | J19: -9.79 | K19: -9.39 | L19: 0.40 | N19: -9.21 | O19: -10.15 | P19: -9.76 | Q19: 0.93
B20: 7 | C20: -11.78 | D20: -12.51 | E20: -12.08 | G20: 0.73 | I20: -12.13 | J20: -12.57 | K20: -12.68 | L20: 0.55 | N20: -11.63 | O20: -12.28 | P20: -11.83 | Q20: 0.65
B21: 8 | C21: -9.65 | D21: -10.02 | E21: -10.34 | G21: 0.69 | I21: -11.07 | J21: -11.10 | K21: -10.92 | L21: 0.18 | N21: -10.43 | O21: -10.69 | P21: -10.78 | Q21: 0.35
B22: 9 | C22: -11.52 | D22: -12.10 | E22: -11.79 | G22: 0.59 | I22: -11.88 | J22: -11.51 | K22: -11.87 | L22: 0.37 | N22: -10.96 | O22: -11.94 | P22: -11.80 | Q22: 0.99
B23: 10 | C23: -14.49 | D23: -15.43 | E23: -15.34 | G23: 0.94 | I23: -14.40 | J23: -14.37 | K23: -13.94 | L23: 0.46 | N23: -13.95 | O23: -14.80 | P23: -14.83 | Q23: 0.88
B24: Totals: | C24: =SUM(C14:C23) -> -117.53 | D24: =SUM(D14:D23) -> -123.28 | E24: =SUM(E14:F23) -> -126.48 | G24: =SUM(G14:G23) -> 10.03 | H24: =SUM(H14:I23) -> -122.96 | J24: =SUM(J14:J23) -> -126.36 | K24: =SUM(K14:K23) -> -124.66 | L24: =SUM(L14:L23) -> 5.76 | M24: =SUM(M14:N23) -> -121.40 | O24: =SUM(O14:O23) -> -126.60 | P24: =SUM(P14:P23) -> -125.05 | Q24: =SUM(Q14:Q23) -> 7.18
C26: Sum | D26: =SUM(C24:F24) -> -367.29 | E26: Ave Ra | G26: =AVERAGE(G14:G23) -> 1.00 | H26: Sum | J26: =SUM(H24:K24) -> -373.98 | K26: Ave Rb | L26: =AVERAGE(L14:L23) -> 0.58 | M26: Sum | O26: =SUM(M24:P24) -> -373.05 | P26: Ave Rc | Q26: =AVERAGE(Q14:Q23) -> 0.72
C27: X Average | D27: =D26/(3*MAX(B14:B23)) -> -12.24 | H27: X Average | J27: =J26/(3*MAX(B14:B23)) -> -12.47 | M27: X Average | O27: =O26/(3*(MAX(B14:B23))) -> -12.43
C29: Average R: | D29: =AVERAGE(G26,L26,Q26) -> 0.77 | F29: D4= | G29: 2.58
C30: UCL: | D30: =D29*G29 -> 1.98 | F30: K1= | G30: 3.05 | H30: for 3 trials. | K30: K2= | L30: 2.7 | M30: for 3 appraisers.
C31: Repeatability: | D31: =3.05*D29 -> 2.34 | E31: =D31/($P$9+ABS($Q$9)) -> 11.7% | G31: Variation caused by Equipment
C32: Reproducibility: | D32: =L30*(MAX(D27,J27,O27)-MIN(D27,J27,O27)) -> 0.60 | E32: =D32/($P$9+ABS($Q$9)) -> 3.0% | G32: Variation caused by Operator
C33: Gauge Capability: | D33: =SQRT(D31^2+D32^2) -> 2.41 | E33: 12.1% | G33: Overall Gauge RnR Capability
B36: Repeatability: | D36: Repeatability is the variation in measurements obtained with one measurement instrument when used several times by an appraiser while measuring the identical characteristic on the same part.
B39: Reproducibility: | D39: Reproducibility is the variation in the average of the measurements made by different appraisers using the same measuring instrument when measuring the identical characteristic on the same part.
B42: Stability: | D42: Stability is the total variation in the measurements obtained with a measurement system on the same master or parts when measuring a single characteristic over an extended time period.
R45: .

Sheet fs-123
B3: Klippel QC Gauge Repeatability & Reproducibility Report
B5: Model Name: | E5: SO Klippel QC -- Play3 PR fs
B6: Ambient Temperature: | F6: ℃
B7: Relative Humidity: | F7: % | N7: SPEC (Hz): | P7: 0
N8: Tolerance (%):
B9: Measurement date: | E9: 2014.04.10 | N9: Tolerance (mm): | P9: 4 | Q9: -4
B11: Operators | C11: A | H11: B | M11: C
B12: Trails | C12: 1 | D12: 2 | E12: 3 | G12: Range | H12: 1 | J12: 2 | K12: 3 | L12: Range | M12: 1 | O12: 2 | P12: 3 | Q12: Range
B13: Sample
B14: 1 | C14: 37.63 | D14: 37.20 | E14: 37.03 | G14: =MAX(C14:F14)-MIN(C14:F14) -> 0.60 | H14: 37.37 | J14: 37.11 | K14: 37.03 | L14: =MAX(H14:K14)-MIN(H14:K14) -> 0.34 | M14: 37.29 | O14: 37.11 | P14: 37.11 | Q14: =MAX(M14:P14)-MIN(M14:P14) -> 0.17
B15: 2 | C15: 37.54 | D15: 37.11 | E15: 37.03 | G15: =MAX(C15:F15)-MIN(C15:F15) -> 0.52 | H15: 37.37 | J15: 37.03 | K15: 36.94 | L15: =MAX(H15:K15)-MIN(H15:K15) -> 0.43 | M15: 37.11 | O15: 37.03 | P15: 36.94 | Q15: =MAX(M15:P15)-MIN(M15:P15) -> 0.17
B16: 3 | C16: 36.52 | D16: 35.93 | E16: 35.68 | G16: =MAX(C16:F16)-MIN(C16:F16) -> 0.83 | H16: 36.35 | J16: 35.77 | K16: 35.36 | L16: =MAX(H16:K16)-MIN(H16:K16) -> 0.99 | M16: 35.77 | O16: 35.68 | P16: 35.44 | Q16: =MAX(M16:P16)-MIN(M16:P16) -> 0.33
B17: 4 | C17: 37.29 | D17: 36.94 | E17: 36.86 | G17: 0.43 | H17: 37.11 | J17: 36.86 | K17: 36.77 | L17: 0.34 | M17: 36.94 | O17: 36.86 | P17: 36.77 | Q17: 0.17
B18: 5 | C18: 36.77 | D18: 36.27 | E18: 36.27 | G18: 0.51 | H18: 36.52 | J18: 36.27 | K18: 36.18 | L18: 0.34 | M18: 36.43 | O18: 36.27 | P18: 36.18 | Q18: 0.25
B19: 6 | C19: 38.16 | D19: 37.63 | E19: 37.46 | G19: 0.70 | H19: 37.89 | J19: 37.46 | K19: 37.37 | L19: 0.52 | M19: 37.81 | O19: 37.46 | P19: 37.37 | Q19: 0.43
B20: 7 | C20: 37.20 | D20: 36.86 | E20: 36.69 | G20: 0.51 | H20: 37.03 | J20: 36.77 | K20: 36.69 | L20: 0.34 | M20: 36.94 | O20: 36.77 | P20: 36.69 | Q20: 0.26
B21: 8 | C21: 37.37 | D21: 37.03 | E21: 36.94 | G21: 0.43 | H21: 37.11 | J21: 36.94 | K21: 36.94 | L21: 0.17 | M21: 37.03 | O21: 36.94 | P21: 36.86 | Q21: 0.17
B22: 9 | C22: 37.37 | D22: 37.03 | E22: 36.94 | G22: 0.43 | H22: 37.20 | J22: 36.94 | K22: 36.86 | L22: 0.34 | M22: 37.11 | O22: 36.94 | P22: 36.86 | Q22: 0.26
B23: 10 | C23: 36.77 | D23: 36.43 | E23: 36.27 | G23: 0.51 | H23: 36.52 | J23: 36.35 | K23: 36.27 | L23: 0.25 | M23: 36.43 | O23: 36.35 | P23: 36.27 | Q23: 0.17
B24: Totals: | C24: =SUM(C14:C23) -> 372.62 | D24: =SUM(D14:D23) -> 368.43 | E24: =SUM(E14:F23) -> 367.16 | G24: =SUM(G14:G23) -> 5.46 | H24: =SUM(H14:I23) -> 370.47 | J24: =SUM(J14:J23) -> 367.49 | K24: =SUM(K14:K23) -> 366.40 | L24: =SUM(L14:L23) -> 4.07 | M24: =SUM(M14:N23) -> 368.86 | O24: =SUM(O14:O23) -> 367.41 | P24: =SUM(P14:P23) -> 366.49 | Q24: =SUM(Q14:Q23) -> 2.38
C26: Sum | D26: =SUM(C24:F24) -> 1108.21 | E26: Ave Ra | G26: =AVERAGE(G14:G23) -> 0.55 | H26: Sum | J26: =SUM(H24:K24) -> 1104.37 | K26: Ave Rb | L26: =AVERAGE(L14:L23) -> 0.41 | M26: Sum | O26: =SUM(M24:P24) -> 1102.76 | P26: Ave Rc | Q26: =AVERAGE(Q14:Q23) -> 0.24
C27: X Average | D27: =D26/(3*MAX(B14:B23)) -> 36.94 | H27: X Average | J27: =J26/(3*MAX(B14:B23)) -> 36.81 | M27: X Average | O27: =O26/(3*(MAX(B14:B23))) -> 36.76
C29: Average R: | D29: =AVERAGE(G26,L26,Q26) -> 0.40 | F29: D4= | G29: 2.58
C30: UCL: | D30: =D29*G29 -> 1.02 | F30: K1= | G30: 3.05 | H30: for 3 trials. | K30: K2= | L30: 2.7 | M30: for 3 appraisers.
C31: Repeatability: | D31: =3.05*D29 -> 1.21 | E31: =D31/($P$9+ABS($Q$9)) -> 15.1% | G31: Variation caused by Equipment
C32: Reproducibility: | D32: =L30*(MAX(D27,J27,O27)-MIN(D27,J27,O27)) -> 0.49 | E32: =D32/($P$9+ABS($Q$9)) -> 6.1% | G32: Variation caused by Operator
C33: Gauge Capability: | D33: =SQRT(D31^2+D32^2) -> 1.31 | E33: 16.3% | G33: Overall Gauge RnR Capability
B36: Repeatability: | D36: Repeatability is the variation in measurements obtained with one measurement instrument when used several times by an appraiser while measuring the identical characteristic on the same part.
B39: Reproducibility: | D39: Reproducibility is the variation in the average of the measurements made by different appraisers using the same measuring instrument when measuring the identical characteristic on the same part.
B42: Stability: | D42: Stability is the total variation in the measurements obtained with a measurement system on the same master or parts when measuring a single characteristic over an extended time period.
R45: .

Sheet K-123
B3: Klippel QC Gauge Repeatability & Reproducibility Report
B5: Model Name: | E5: SO Klippel QC -- Play3 PR Stillness deviations
B6: Ambient Temperature: | F6: ℃
B7: Relative Humidity: | F7: % | N7: SPEC (Hz): | P7: 0
N8: Tolerance (%):
B9: Measurement date: | E9: 2014.04.10 | N9: Tolerance (mm): | P9: 10 | Q9: -10
B11: Operators | C11: A | H11: B | M11: C
B12: Trails | C12: 1 | D12: 2 | E12: 3 | G12: Range | H12: 1 | J12: 2 | K12: 3 | L12: Range | M12: 1 | O12: 2 | P12: 3 | Q12: Range
B13: Sample
B14: 1 | C14: -8.73 | D14: -10.53 | E14: -11.21 | G14: =MAX(C14:F14)-MIN(C14:F14) -> 2.47 | I14: -10.05 | J14: -10.63 | K14: -11.25 | L14: =MAX(H14:K14)-MIN(H14:K14) -> 1.20 | N14: -10.51 | O14: -11.16 | P14: -10.81 | Q14: =MAX(M14:P14)-MIN(M14:P14) -> 0.64
B15: 2 | C15: -8.69 | D15: -10.43 | E15: -10.64 | G15: =MAX(C15:F15)-MIN(C15:F15) -> 1.95 | I15: -8.76 | J15: -10.55 | K15: -11.45 | L15: =MAX(H15:K15)-MIN(H15:K15) -> 2.69 | N15: -10.01 | O15: -10.56 | P15: -11.00 | Q15: =MAX(M15:P15)-MIN(M15:P15) -> 0.98
B16: 3 | C16: -12.89 | D16: -15.95 | E16: -17.46 | G16: =MAX(C16:F16)-MIN(C16:F16) -> 4.56 | I16: -13.31 | J16: -17.28 | K16: -18.64 | L16: =MAX(H16:K16)-MIN(H16:K16) -> 5.34 | N16: -17.41 | O16: -18.50 | P16: -18.84 | Q16: =MAX(M16:P16)-MIN(M16:P16) -> 1.43
B17: 4 | C17: -8.85 | D17: -9.99 | E17: -10.52 | G17: 1.67 | I17: -10.87 | J17: -11.06 | K17: -11.61 | L17: 0.73 | N17: -11.26 | O17: -10.87 | P17: -11.95 | Q17: 1.09
B18: 5 | C18: -12.63 | D18: -14.56 | E18: -14.31 | G18: 1.93 | I18: -13.15 | J18: -14.32 | K18: -14.08 | L18: 1.17 | N18: -12.90 | O18: -14.14 | P18: -14.13 | Q18: 1.24
B19: 6 | C19: -5.94 | D19: -8.64 | E19: -9.09 | G19: 3.15 | I19: -7.02 | J19: -9.64 | K19: -9.79 | L19: 2.77 | N19: -8.18 | O19: -9.21 | P19: -10.15 | Q19: 1.97
B20: 7 | C20: -10.41 | D20: -11.78 | E20: -12.51 | G20: 2.10 | I20: -11.30 | J20: -12.13 | K20: -12.57 | L20: 1.27 | N20: -10.86 | O20: -11.63 | P20: -12.28 | Q20: 1.42
B21: 8 | C21: -8.44 | D21: -9.65 | E21: -10.02 | G21: 1.59 | I21: -10.46 | J21: -11.07 | K21: -11.10 | L21: 0.64 | N21: -10.67 | O21: -10.43 | P21: -10.69 | Q21: 0.26
B22: 9 | C22: -9.94 | D22: -11.52 | E22: -12.10 | G22: 2.16 | I22: -11.18 | J22: -11.88 | K22: -11.51 | L22: 0.70 | N22: -11.46 | O22: -10.96 | P22: -11.94 | Q22: 0.99
B23: 10 | C23: -13.10 | D23: -14.49 | E23: -15.43 | G23: 2.33 | I23: -13.59 | J23: -14.40 | K23: -14.37 | L23: 0.81 | N23: -14.52 | O23: -13.95 | P23: -14.80 | Q23: 0.85
B24: Totals: | C24: =SUM(C14:C23) -> -99.63 | D24: =SUM(D14:D23) -> -117.53 | E24: =SUM(E14:F23) -> -123.28 | G24: =SUM(G14:G23) -> 23.91 | H24: =SUM(H14:I23) -> -109.69 | J24: =SUM(J14:J23) -> -122.96 | K24: =SUM(K14:K23) -> -126.36 | L24: =SUM(L14:L23) -> 17.31 | M24: =SUM(M14:N23) -> -117.77 | O24: =SUM(O14:O23) -> -121.40 | P24: =SUM(P14:P23) -> -126.60 | Q24: =SUM(Q14:Q23) -> 10.88
C26: Sum | D26: =SUM(C24:F24) -> -340.44 | E26: Ave Ra | G26: =AVERAGE(G14:G23) -> 2.39 | H26: Sum | J26: =SUM(H24:K24) -> -359.01 | K26: Ave Rb | L26: =AVERAGE(L14:L23) -> 1.73 | M26: Sum | O26: =SUM(M24:P24) -> -365.77 | P26: Ave Rc | Q26: =AVERAGE(Q14:Q23) -> 1.09
C27: X Average | D27: =D26/(3*MAX(B14:B23)) -> -11.35 | H27: X Average | J27: =J26/(3*MAX(B14:B23)) -> -11.97 | M27: X Average | O27: =O26/(3*(MAX(B14:B23))) -> -12.19
C29: Average R: | D29: =AVERAGE(G26,L26,Q26) -> 1.74 | F29: D4= | G29: 2.58
C30: UCL: | D30: =D29*G29 -> 4.48 | F30: K1= | G30: 3.05 | H30: for 3 trials. | K30: K2= | L30: 2.7 | M30: for 3 appraisers.
C31: Repeatability: | D31: =3.05*D29 -> 5.30 | E31: =D31/($P$9+ABS($Q$9)) -> 26.5% | G31: Variation caused by Equipment
C32: Reproducibility: | D32: =L30*(MAX(D27,J27,O27)-MIN(D27,J27,O27)) -> 2.28 | E32: =D32/($P$9+ABS($Q$9)) -> 11.4% | G32: Variation caused by Operator
C33: Gauge Capability: | D33: =SQRT(D31^2+D32^2) -> 5.77 | E33: 28.8% | G33: Overall Gauge RnR Capability
B36: Repeatability: | D36: Repeatability is the variation in measurements obtained with one measurement instrument when used several times by an appraiser while measuring the identical characteristic on the same part.
B39: Reproducibility: | D39: Reproducibility is the variation in the average of the measurements made by different appraisers using the same measuring instrument when measuring the identical characteristic on the same part.
B42: Stability: | D42: Stability is the total variation in the measurements obtained with a measurement system on the same master or parts when measuring a single characteristic over an extended time period.
R45: .
